Cogmind - Beta 13 @@@ ROGUE MODE // 2024.07.09 @ 23:24:05 Player: Venar246 Result: Destroyed by KV-40W(R) with Subdweller Shrapnel Launcher Performance ------------- Evolutions (0) 0 Regions Visited (3) 600 Robots Destroyed (26) 130 Value Destroyed (711) 711 Prototype IDs (0) 0 Alien Tech Used (0) 0 Bonus (-117) -117 TOTAL SCORE: 1324 Bonus ------- High Alert Combat Kills 6 Follower Combat Kills 30 Friendly Fire -153 Cogmind --------- Core Integrity 0/250 Matter 295/300 Energy 100/100 System Corruption 0% Temperature Cool (0) Movement Rolling (110) Location -10/Subcaves Parts ------- > --- POWER (1) -------- (None) > --- PROPULSION (2) --- Subdweller Monowheel Subdweller Monowheel > --- UTILITY (2) ------ Medium Storage Unit Signal Interpreter > --- WEAPON (2) ------- Makeshift Axe > --- INVENTORY (10) --- High-capacity Storage Unit EM Pulse Gun Subdweller Laser Subdweller Beam Cannon Battle Rifle Subdweller Machine Gun Bore Cannon Peak State ------------ > --- POWER ------------ (None) > --- PROPULSION ------- Subdweller Monowheel Subdweller Monowheel > --- UTILITY ---------- Medium Storage Unit Signal Interpreter > --- WEAPON ----------- Mining Laser Makeshift Axe > --- INVENTORY -------- High-capacity Storage Unit EM Pulse Gun Subdweller Laser Subdweller Beam Cannon Battle Rifle Subdweller Machine Gun Bore Cannon [Rating: 12] Favorites ----------- Power Light Ion Engine Engine Light Ion Engine Propulsion Aluminum Leg Leg Aluminum Leg Wheel Subdweller Monowheel Utility Medium Storage Unit Storage Medium Storage Unit Processor Signal Interpreter Weapon EM Pulse Gun Energy Gun EM Pulse Gun Energy Cannon Subdweller Beam Cannon Ballistic Gun Battle Rifle Launcher Grenade Launcher Special Weapon Mining Laser Slashing Weapon Makeshift Axe Build | -11 -10 -10 -10 ------- Run | Yrd Mat Min Sub Slots Evolved . | . . . . Power . | . . . . Propulsion . | . . . . Utility . | . . . . Weapon . | . . . . Parts Attached 28 | 6 7 4 11 Power 2 | 1 . . 1 Engine 2 | 1 . . 1 Core . | . . . . Reactor . | . . . . Propulsion 7 | 2 2 . 3 Treads . | . . . . Leg 5 | 2 2 . 1 Wheel 2 | . . . 2 Hover . | . . . . Flight . | . . . . Utility 5 | 1 3 1 . Device . | . . . . Storage 3 | 1 1 1 . Processor 2 | . 2 . . Hackware . | . . . . Protection . | . . . . Artifact . | . . . . Weapon 14 | 2 2 3 7 Energy Gun 6 | 2 1 2 1 Energy Cannon 1 | . . . 1 Ballistic Gun 1 | . . . 1 Ballistic Cannon . | . . . . Launcher 3 | . 1 . 2 Special Weapon 2 | . . 1 1 Impact Weapon . | . . . . Slashing Weapon 1 | . . . 1 Piercing Weapon . | . . . . Special Melee Weapon . | . . . . Unidentified Prototypes . | . . . . Parts Lost 9 | . 1 1 7 Power 2 | . . 1 1 Propulsion 2 | . . . 2 Utility . | . . . . Weapon 5 | . 1 . 4 Highest Loss Streak 3 | . 1 1 3 To Critical Strikes . | . . . . Average Slot Usage (%) 87 | . 94 89 82 Engine 7 | . 14 4 6 Leg 22 | . 28 28 15 Wheel 5 | . . . 12 Storage 13 | . 13 12 14 Processor 13 | . 9 15 14 Energy Gun 16 | . 28 27 4 Launcher 3 | . . . 8 Special Weapon 2 | . . . 5 Naked Turns . | . . . . Heaviest Build 21 | 12 17 17 21 Greatest Support 40 | 20 20 20 40 Greatest Overweight (x) 1 | . . . 1 Average Overweight (x) . | . . . . Largest Inventory Capacity 10 | 8 10 10 10 Average Capacity 9 | 6 8 9 10 Most Carried 9 | 1 9 7 9 Average Carried 5 | . 5 5 6 Final Capacity 10 | 8 5 10 10 Final Carried 7 | 1 5 6 7 Class Distribution -------------------- 100% | Mutant Dominant Class ---------------- Mutant | -10/Materials Mutant | -10/Mines Mutant | -10/Subcaves Resources | -11 -10 -10 -10 ----------- Run | Yrd Mat Min Sub Matter Collected 598 | 219 86 45 248 Remotely . | . . . . Salvage Created 693 | . 370 60 263 Parts 49 | . 24 2 23 Haulers Intercepted 1 | . 1 . . Recyclers Shooed . | . . . . Parts Field Recycled . | . . . . Retrieved Matter . | . . . . Parts Self-Destructed 6 | . . . 6 Prevented 1 | . . . 1 Kills | -11 -10 -10 -10 ------- Run | Yrd Mat Min Sub Combat Hostiles Destroyed 21 | . 10 1 10 Guns 12 | . 5 1 6 AOE 9 | . 5 . 4 Classes Destroyed 6 | . 5 . 1 Builder 1 | . 1 . . Hauler 1 | . 1 . . Watcher 2 | . 2 . . Swarmer 6 | . 3 . 3 Grunt 11 | . 7 1 3 Subdweller 5 | . . . 5 Best Kill Streak 10 | . 10 1 3 Combat Bots Only 8 | . 8 1 3 Max Kills in Single Turn 4 | . 4 1 2 Gunslinging 1 | . 1 . . Exploded 2 | . 2 . 2 Melee . | . . . . Uniques/NPCs Destroyed . | . . . . Combat | -11 -10 -10 -10 -------- Run | Yrd Mat Min Sub Hostile Shots Fired 69 | . 20 7 42 Missed 20 | . 4 1 15 Damage Taken 1024 | . 237 87 700 Core 261 | . 101 29 131 Absorbed by Shields . | . . . . Core Remaining (%) 100 | 100 . . . Volleys Fired 88 | . 17 7 64 Largest 2 | . 2 2 2 Hottest 105 | . 80 100 105 Shots Fired 121 | . 34 13 74 Gun 66 | . 33 12 21 Cannon 1 | . . . 1 Launcher 14 | . 1 . 13 Special 40 | . . 1 39 Kinetic 9 | . . . 9 Thermal 41 | . . 1 40 Explosive 14 | . 1 . 13 Electromagnetic 57 | . 33 12 12 Robot Hit Streak 17 | . 5 4 17 Robot Miss Streak 3 | . 3 2 1 Penetration Max . | . . . . Secondary Targets 3 | . 1 . 2 Max Gunslinging Chain 1 | . 1 . 1 Shots Hit Robots 48 | . 23 8 17 Core Hits 37 | . 17 3 17 Critical Kills . | . . . . Critical Parts Destroyed . | . . . . Critical Strikes . | . . . . Melee Attacks . | . . . . Impact . | . . . . Slashing . | . . . . Piercing . | . . . . Sneak Attacks . | . . . . Combat Hostiles . | . . . . Follow-up Attacks . | . . . . Damage Inflicted 1865 | . 1087 101 677 Guns 685 | . 361 101 223 Cannons . | . . . . Explosions 1180 | . 726 . 454 Melee . | . . . . Ramming . | . . . . Kinetic 125 | . . . 125 Thermal 173 | . 173 . . Explosive 1007 | . 553 . 454 Electromagnetic 560 | . 361 101 98 Impact . | . . . . Slashing . | . . . . Piercing . | . . . . Highest Corruption . | . . . . Average Corruption . | . . . . Corruption Purged . | . . . . Corruption Blocked . | . . . . Overload Shots . | . . . . Overflow Damage 79 | . 79 . . Projectiles . | . . . . Explosions 79 | . 79 . . Melee . | . . . . Knockbacks . | . . . . Impact . | . . . . Kinetic . | . . . . Secondary . | . . . . Self-Inflicted Damage 88 | . 71 . 17 Shots 3 | . 1 . 2 Rammed . | . . . . Targets Rammed 1 | . . 1 . Kicked 1 | . . 1 . Crushed . | . . . . Highest Temperature 87 | . 87 78 14 Average Temperature 33 | . 30 45 10 Received Heat Transfer 234 | . 69 54 111 Siege Activations . | . . . . Robots Corrupted . | . . . . Combat Hostiles . | . . . . Parts Fried 4 | . 3 1 . Impact Corruptions . | . . . . Robots Melted . | . . . . Combat Hostiles . | . . . . Parts Melted . | . . . . Heat Transferred 150 | . 150 . . Parts Sabotaged . | . . . . Parts Stolen . | . . . . Parts Stripped . | . . . . Power Chain Reactions 2 | . 2 . . Alert | -11 -10 -10 -10 ------- Run | Yrd Mat Min Sub Peak Influence 466 | . 466 132 . Initial 112 | . . 112 . Average 126 | . 282 44 . Maximum Alert Level 2 | . 2 . . Low Security (%) 74 | 100 28 100 . Level 1 14 | . 40 . . Level 2 10 | . 30 . . Level 3 . | . . . . Level 4 . | . . . . Level 5 . | . . . . High Security . | . . . . Max Security . | . . . . Squads Dispatched 1 | . 1 . . Investigation . | . . . . Extermination . | . . . . Reinforcement 1 | . 1 . . Assault . | . . . . Garrison . | . . . . Intercept . | . . . . Searches Triggered . | . . . . Construction Impeded . | . . . . Haulers Reinforced . | . . . . Active Scanning Responses . | . . . . Cargo Convoy Interrupts . | . . . . Stealth | -11 -10 -10 -10 --------- Run | Yrd Mat Min Sub Distress Signals 1 | . 1 . . Communications Jammed . | . . . . Distress Signals . | . . . . Times Spotted 31 | . 15 1 15 Peak Tracking Total 4 | . 3 1 4 Tactical Retreats . | . . . . Traps | -11 -10 -10 -10 ------- Run | Yrd Mat Min Sub Traps Triggered 3 | . . . 3 Indirectly . | . . . . Trap Hack Attempts . | . . . . Triggered . | . . . . Disarmed . | . . . . Reprogrammed . | . . . . Reused . | . . . . Traps Extracted . | . . . . Installed . | . . . . Triggered 1 | . . . 1 Machines | -11 -10 -10 -10 ---------- Run | Yrd Mat Min Sub Machines Disabled 3 | . 3 . . Max in Single Turn 2 | . 2 . . Machines Repaired . | . . . . Machines Dismantled . | . . . . Machines Sabotaged . | . . . . Overloaded Fab Kills . | . . . . Hacking | -11 -10 -10 -10 --------- Run | Yrd Mat Min Sub Machines Accessed . | . . . . Terminals . | . . . . Fabricators . | . . . . Repair Stations . | . . . . Recycling Units . | . . . . Scanalyzers . | . . . . Garrison Access . | . . . . Total Hacks . | . . . . Successful . | . . . . Failed . | . . . . Catastrophic . | . . . . Database Lockouts . | . . . . Manual . | . . . . Terminals . | . . . . Fabricators . | . . . . Repair Stations . | . . . . Recycling Units . | . . . . Scanalyzers . | . . . . Garrison Access . | . . . . Terminal Hacks . | . . . . Fabricator Hacks . | . . . . Repair Station Hacks . | . . . . Recycling Unit Hacks . | . . . . Scanalyzer . | . . . . Garrison Access Hacks . | . . . . Unauthorized Hacks . | . . . . Terminals . | . . . . Fabricators . | . . . . Repair Stations . | . . . . Recycling Units . | . . . . Scanalyzers . | . . . . Garrison Access . | . . . . Data Cores Recovered . | . . . . Used . | . . . . Hacking Detections . | . . . . Full Trace Events . | . . . . Feedback Events . | . . . . Feedback Blocked . | . . . . Robot Schematics Acquired . | . . . . Robots Built . | . . . . Authchips . | . . . . Time . | . . . . Total Robot Build Rating . | . . . . Part Schematics Acquired . | . . . . Parts Built . | . . . . Authchips . | . . . . Time . | . . . . Total Part Build Rating . | . . . . Parts Repaired . | . . . . Time . | . . . . Parts Recycled . | . . . . Recycled Matter . | . . . . Retrieved Matter . | . . . . Retrieved Components . | . . . . Parts Scanalyzed . | . . . . Part Schematics Acquired . | . . . . Parts Damaged . | . . . . Bothacking | -11 -10 -10 -10 ------------ Run | Yrd Mat Min Sub Used RIF Installer . | . . . . Robots Hacked . | . . . . Non-combat . | . . . . Combat . | . . . . Robot Hacks Applied . | . . . . Relay Couplers Released . | . . . . Fabnet Peak Effective % . | . . . . Robots Rewired . | . . . . Allies Hacked . | . . . . Hacks Repelled . | . . . . Allies | -11 -10 -10 -10 -------- Run | Yrd Mat Min Sub Total Allies 3 | . . 3 . Largest Group 3 | . . 3 3 Highest-Rated Group 40 | . . 40 40 Highest-Rated Ally 16 | . . 16 16 Total Orders . | . . . . Ally Attacks 9 | . . . 9 Total Damage 113 | . . . 113 Kills 1 | . . . 1 Allies Corrupted . | . . . . Allies Melted . | . . . . Intel | -11 -10 -10 -10 ------- Run | Yrd Mat Min Sub Robot Analysis Total . | . . . . Derelict Logs Recovered 2 | . . 1 1 Drone Launches . | . . . . Drone Recoveries . | . . . . Exploration | -11 -10 -10 -10 ------------- Run | Yrd Mat Min Sub Turns Passed 3074 | 71 598 1016 1389 Spaces Moved 2074 | 57 437 820 760 Core 10 | 10 . . . Treads . | . . . . Legs 1796 | 47 437 820 492 Wheels 268 | . . . 268 Hover . | . . . . Flight . | . . . . Fastest Speed 50 | 50 120 120 110 Average Speed 123 | 107 120 120 130 Slowest Speed 190 | 120 120 120 190 Overloaded Moves . | . . . . Propulsion Burnouts . | . . . . Robots Hopped . | . . . . Cave-ins Triggered . | . . . . Exploration Rate (%) 50 | 4 66 99 33 Regions Visited 3 Branch Regions 2 Pre-discovered Areas 1 | . . 1 . Known Exits Taken 2 | . 1 1 . Unknown Exits Taken 1 | 1 . . . Scrap Searched 7 | . . 3 4 Spaces Dug 8 | . . 1 7 Terrain Destroyed 112 | . 48 1 63 Melee . | . . . . Projectile 1 | . . 1 . AOE 111 | . 48 . 63 Terrain Rammed . | . . . . Walls Destroyed . | . . . . Machines Disabled . | . . . . Actions | -11 -10 -10 -10 --------- Run | Yrd Mat Min Sub Total 2372 | 63 477 837 995 Wait 153 | . . . 153 Move 2071 | 56 436 819 760 Hop . | . . . . Pick Up 20 | 1 11 3 5 Fast Attach 10 | 6 1 . 3 Attach 9 | . 2 2 5 Detach 2 | . . 1 1 Swap 9 | . 4 2 3 Drop 9 | . 6 2 1 Fire 88 | . 17 7 64 Melee . | . . . . Ram . | . . . . Kick 1 | . . 1 . Crush . | . . . . Escape Stasis . | . . . . Rewire . | . . . . Trap . | . . . . Miscellaneous . | . . . . Route ------- -11/Scrapyard -10/Materials (discovered 2 exits: *Mat / *Min) -10/Mines (discovered 3 exits: *Mat x2 / *Sub) -10/Subcaves History --------- Turn | Location | Event 6 | -11/Scrapyard | Discovered new exit (range 16) 72 | -11/Scrapyard | Entered Materials 211 | -10/Materials | Discovered new exit (range 7) 313 | -10/Materials | Destroyed 8 combat bots 316 | -10/Materials | Build established: Mutant 362 | -10/Materials | Discovered new exit (range 11) 661 | -10/Materials | Identified exit to Mines 670 | -10/Materials | Entered Mines 713 | -10/Mines | Met a Derelict bent on vengeance 733 | -10/Mines | A weapon hastily lodged in a ceiling crevice suddenly fell to the ground 864 | -10/Mines | Learned location of Zion (-7) 972 | -10/Mines | Discovered new exit (range 10) 987 | -10/Mines | Identified exit to Materials 1044 | -10/Mines | Core integrity fell below 50% 1532 | -10/Mines | Discovered exit to Materials (range 5) 1562 | -10/Mines | Assisted by bots powering up and referring to "LRC-V3" 1670 | -10/Mines | Discovered new exit (range 6) 1678 | -10/Mines | Identified exit to Subcaves 1686 | -10/Mines | Entered Subcaves 1686 | -10/Subcaves | Accompanied by 3 allies 2194 | -10/Subcaves | Shifting Twisted Machinery released Sub. Laser 2237 | -10/Subcaves | Shifting Twisted Machinery released Scrap Shield 2301 | -10/Subcaves | Shifting Twisted Machinery released Sub. Beam Cannon 2337 | -10/Subcaves | A swath of the cavern ceiling suddenly collapsed 2413 | -10/Subcaves | Shifting Twisted Machinery released Sub. Beam Cannon 2451 | -10/Subcaves | Core integrity fell below 20% 2457 | -10/Subcaves | Lost 3 parts (2n1w) 3075 | -10/Subcaves | Destroyed by KV-40W(R) with Subdweller Shrapnel Launcher Last Messages --------------- FT-V3R(R) destroyed. Switching to secondary target: ID-AC6(R). EM Pulse Gun destroyed. Ion Engine destroyed. ID-AC6(R) destroyed. Acquired 45 matter. Dropped Aluminum Leg. Acquired Sub. Monowheel. Acquired 43 matter. NL-DRH(z): "She is not going to be happy we haven't found any suitable candidates yet." Sub. Monowheel shoots sparks and powers down. Acquired Sub. Laser. Searching scrap... Found Mak. Axe. Found Battle Rifle. Found 31 Matter. Acquired 25 matter. Acquired Mak. Axe. Mining Laser destroyed. Map ----- +----------------------------------------------------+ | ##?## ####????????# ### "" ## "" # | | ##?# ######???????# # # "#?## " | | ## ### ##??????# ## ## "#??## "" | | ##?????# ##### ## ###### # | | #?????## #???## ## """#?## # | | #??????## #?#### # ### ]""#?# "" | | #???????##??#" ### #??# # | | ### ## ##??????????#"# #% & #??# # | | #??# ## #??????????## / "#!&& #??## " | | #???# #####???????# != ! * ##?# # | | ????##### #???????##" #*#"""&=[ "###" | | ????????## #????????#####"""#"#" """" | | ?????????# #??????????? ########" | | ?????????# ### ##??##??????? #?????# "##"" | | ?????????# ### # ### ##??????#??????# #### | | ?????????####?# ## ""??????????????# #?## | | ??????????????## ## # #?????????????# " ##??# | | ???????????????# """ # ##????????????##""####???? | | ?????????????### " " ####"""#??????####??????? | | ?????????#""## """ """""??????????????????? | | ?????????""""" R ### ??????????????????????? | | ?????????""### R"""R ##????????????????????????? | | ?????????????# " R" ##???????????????????????? | | ?????????????# ##" " #???????????????????????? | | ?????????????# ?## #### ##??????????????????????? | | ?????????????# ??###??# "@#??????????????????????? | | ?????????????# ???????## " #?????????????????????? | | ????????????? ????????##"" ????????????????????? | | ????????????? ??????????#"""""???????????????????? | | ????????????? ??????????# """"#??????????????????? | | ???????????? ??????????# "##??????????????????? | | ????????????#???????????##"""????????????????????? | | ??????????????????????????#??????????????????????? | | ?????????????????????????????????????????????????? | | ?????????????????????????????????????????????????? | | ?????????????????????????????????????????????????? | | ?????????????????????????????????????????????????? | | ?????????????????????????????????????????????????? | | ?????????????????????????????????????????????????? | | ?????????????????????????????????????????????????? | | ?????????????????????????????????????????????????? | | ?????????????????????????????????????????????????? | | ?????????????????????????????????????????????????? | | ?????????????????????????????????????????????????? | | ?????????????????????????????????????????????????? | | ?????????????????????????????????????????????????? | | ?????????????????????????????????????????????????? | | ?????????????????????????????????????????????????? | | ?????????????????????????????????????????????????? | | ?????????????????????????????????????????????????? | +----------------------------------------------------+ Best States ------------- Heat Dissipation 25 Energy Generation 10 Energy Capacity 250 Matter Stores 300 Matter Capacity 300 Sight Range 16 Terrain Scan Density 85 Evasion (%) 55 Item Schematics ----------------- None Robot Schematics ------------------ None Fabricated ------------ Nothing Alien Tech Used ----------------- None Achievements -------------- None Challenges ------------ None Game ------ Seed CloakingExoskeletonAutobeam Manual? 0 Play Time 00:19:09 Cumulative 6.3 hours Start 2024.07.09 @ 23:07:05 End 2024.07.09 @ 23:24:05 Sessions 1 Manual Loads 0 Difficulty Rogue Special Mode None Game No. 18 Rogue 18 Adventurer 0 Explorer 0 Win Type - Total 0 Types 0/0/0/0/0/0/0/0/0 Lore% 4 Gallery% 14 Achievement% 10 Wizard Run 0 Options --------- Layout 1 ASCII 0 Keyboard 0 Movement Arrows Keybinds 0 Fullscreen 1 Font 32/SmallcapsGlow Map View 50x35 Zoom Use 0% Tactical HUD 0 Map Filters NONE Filters NONE Steam 1 RUN: 47bd9616-b848-472e-a094-56c74008ca63